lending/lending_fUSD_20260310
["ID","MTS","AMOUNT","RATE_DAILY","PERIOD"]
[408088649,1773131647993,5000.01,7.945e-05,2]
[408088650,1773131648016,1633.82,7.945e-05,2]
[408088651,1773131707498,1566.528326,7.945e-05,2]
[408088652,1773131759629,152.14,9.172e-05,2]
[408088653,1773131759819,152.14,9.878e-05,2]
[408088654,1773131760030,152.14,0.00010583,2]
[408088655,1773131760241,152.14,0.00011289,2]
[408088656,1773131760437,152.14,0.00011994,2]
[408088657,1773131760637,152.14,0.000127,2]
[408088658,1773131760840,152.14,0.00013406,2]
[408088659,1773131761396,152.14,0.00014111,2]
[408088660,1773131768002,2216.361674,7.945e-05,2]
[408088661,1773131768022,2808.985599,7.945e-05,2]
[408088662,1773131836218,515.04698736,9.501e-05,2]
[408088663,1773131836636,500.0,9.501e-05,2]
[408088664,1773132157568,-152.14,0.00014817,2]
[408088665,1773132157588,-250.0,0.00014817,2]
[408088666,1773132157609,-273.0,0.00014817,2]
[408088667,1773132157628,-300.0,0.00014863,2]
[408088668,1773132157649,-600.0,0.00014908,2]
[408088669,1773132157669,-500.0,0.00015,30]
[408088670,1773132157690,-500.0,0.00015,30]
[408088671,1773132157713,-227.0,0.00015,30]
[408088672,1773132159702,-273.0,0.00015,30]
[408088673,1773132159725,-267.40478111,0.00015083,2]
[408088674,1773132159749,-152.14,0.00015522,2]
[408088675,1773132159772,-273.3715,0.00015585,2]
[408088676,1773132159795,-152.14,0.00016228,2]
[408088677,1773132159820,-1200.0,0.00016297,2]
[408088678,1773132159843,-300.0,0.00016297,2]
[408088679,1773132159864,-184.08371889,0.00016298,2]
[408088680,1773132161461,-415.91628111,0.00016298,2]
[408088681,1773132161481,-300.0,0.00016298,2]
[408088682,1773132161502,-250.0,0.00016298,2]
[408088683,1773132180606,163.32,0.0001491,2]
[408088684,1773132183632,-152.14,0.00016933,2]
[408088685,1773132183653,-504.0,0.00017,2]
[408088686,1773132183674,-142.103939,0.00017046,7]
[408088687,1773132185764,-250.92685591,0.00016967,2]
[408088688,1773132185785,-547.31708309,0.00016967,2]
[408088689,1773132264645,603.93,0.000145,2]
[408088752,1773132632593,-250.0,0.00015,2]
[408088753,1773132632602,-500.0,0.00015,30]
[408088754,1773132632611,-250.0,0.00015,2]
[408088755,1773132632620,-250.0,0.00016101,2]
[408088756,1773132632630,-1200.0,0.00016499,2]
[408088757,1773132632639,-5000.0,0.000165,2]
[408088758,1773132632649,-300.0,0.000165,2]
[408088759,1773132632659,-2500.0,0.000165,2]
[408088760,1773132632667,-2500.0,0.000165,2]
[408088761,1773132632676,-2500.0,0.000165,2]
[408088762,1773132632686,-2500.0,0.000165,2]
[408088763,1773132632695,-2500.0,0.000165,2]
[408088764,1773132632704,-250.0,0.000165,2]
[408088765,1773132632714,-200.0,0.000165,2]
[408088766,1773132632722,-195.0,0.000165,2]
[408088767,1773132632732,-504.0,0.00017,2]
[408088768,1773132632741,-656.14,0.00017046,7]
[408088769,1773132632750,-731.0,0.00017105,2]
[408088770,1773132632759,-167.0,0.00017109,2]
[408088771,1773132632768,-853.60920106,0.00017132,2]
[408088772,1773132632777,-160.18,0.00017212,2]
[408088773,1773132632786,-256.0,0.00017279,2]
[408088774,1773132632795,-1002.24583529,0.00017335,2]
[408088775,1773132632804,-550.0,0.00017335,2]
[408088776,1773132632813,-1223.0,0.00017336,2]
[408088777,1773132632822,-3294.29,0.00017336,2]
[408088778,1773132632831,-150.99,0.00017336,2]
[408088779,1773132632840,-9999.99,0.00017336,2]
[408088780,1773132632849,-9999.99,0.00017336,2]
[408088781,1773132632857,-523.38923651,0.00017376,2]
[408088782,1773132632867,-671.0,0.00017413,2]
[408088783,1773132632880,-2000.0,0.00017458,2]
[408088784,1773132632890,-2724.05,0.00017475,2]
[408088785,1773132632899,-1123.97,0.00017515,2]
[408088786,1773132632908,-1058.73,0.00017515,2]
[408088787,1773132632918,-150.0,0.00017532,2]
[408088788,1773132632927,-150.0,0.00017591,2]
[408088789,1773132632936,-1554.65,0.00017595,2]
[408088790,1773132632948,-152.14,0.00017639,2]
[408088791,1773132632957,-500.0,0.00017671,2]
[408088792,1773132632967,-166.66,0.00017705,2]
[408088793,1773132632981,-943.75488012,0.00017718,2]
[408088794,1773132632992,-9999.99,0.00017728,2]
[408088795,1773132633001,-7585.92,0.00017728,2]
[408088796,1773132633012,-495.63,0.00017842,2]
[408088797,1773132633022,-636.0,0.00017863,2]
[408088798,1773132633032,-698.1945702,0.00017944,2]
[408088799,1773132633045,-253.91423836,0.00017944,2]
[408088800,1773132633065,-47.89119144,0.00017944,2]
[408088801,1773132633075,-500.0,0.00018059,2]
[408088802,1773132633085,-96.81933598,0.00018059,2]
[408088803,1773132633098,-1011.41591182,0.00018059,2]
[408088804,1773132633108,-205.98852054,0.00018059,2]
[408088805,1773132633127,-843.33708973,0.00018059,2]
[408088806,1773132633140,-2214.77332447,0.00018059,2]
[408088807,1773132633151,-31821.61114506,0.00018059,2]
[408088808,1773132633161,-166.66,0.00018078,2]
[408088809,1773132633170,-1680.0,0.0001812,2]
[408088810,1773132633180,-500.0,0.00018325,7]
[408088811,1773132633189,-500.0,0.00018325,7]
[408088812,1773132633198,-500.0,0.00018325,7]
[408088813,1773132633207,-500.0,0.00018333,2]
[408088814,1773132633216,-152.14,0.00018345,2]
[408088815,1773132633225,-4499.7114,0.00018345,2]
[408088816,1773132633234,-4137.6111,0.00018345,2]
[408088817,1773132633243,-2153.1141,0.00018345,2]
[408088818,1773132633253,-4029.29266619,0.0001835,2]
[408088819,1773132633262,-1123.97,0.0001839,2]
[408088820,1773132633271,-474.0,0.00018427,2]
[408088821,1773132633281,-518.84676166,0.00018435,2]
[408088822,1773132633290,-151.0,0.00018435,2]
[408088823,1773132633299,-151.0,0.00018435,2]
[408088824,1773132633309,-151.0,0.00018435,2]
[408088825,1773132633320,-151.0,0.00018435,2]
[408088826,1773132633330,-200.0,0.00018435,2]
[408088827,1773132633340,-151.0,0.00018435,2]
[408088828,1773132633349,-151.0,0.00018435,2]
[408088829,1773132633363,-151.0,0.00018435,2]
[408088830,1773132633373,-151.0,0.00018435,2]
[408088831,1773132633383,-151.0,0.00018435,2]
[408088832,1773132633393,-151.0,0.00018435,2]
[408088833,1773132633402,-151.0,0.00018435,2]
[408088834,1773132633413,-151.0,0.00018435,2]
[408088835,1773132633424,-151.0,0.00018435,2]
[408088836,1773132633435,-151.0,0.00018435,2]
[408088837,1773132633445,-151.0,0.00018435,2]
[408088838,1773132633455,-151.0,0.00018435,2]
[408088839,1773132633465,-151.0,0.00018435,2]
[408088840,1773132633475,-151.0,0.00018435,2]
[408088841,1773132633486,-151.0,0.00018435,2]
[408088842,1773132633497,-151.0,0.00018435,2]
[408088843,1773132633507,-151.0,0.00018435,2]
[408088844,1773132633516,-151.0,0.00018435,2]
[408088845,1773132633526,-151.0,0.00018435,2]
[408088846,1773132633536,-151.0,0.00018435,2]
[408088847,1773132633545,-151.0,0.00018435,2]
[408088848,1773132633556,-151.0,0.00018435,2]
[408088849,1773132633566,-151.0,0.00018435,2]
[408088850,1773132633576,-31622.04,0.00018446,2]
[408088851,1773132633585,-166.66,0.00018451,2]
[408088852,1773132633595,-150.0,0.00018455,2]
[408088853,1773132633604,-500.0,0.00018455,2]
[408088854,1773132633614,-150.0,0.00018455,2]
[408088855,1773132633624,-150.0,0.0001851,2]
[408088856,1773132633634,-500.0,0.0001851,2]
[408088857,1773132633643,-4029.29266615,0.00018519,2]
[408088858,1773132633653,-504.0,0.00018537,3]
[408088859,1773132633662,-200.0,0.00018565,2]
[408088860,1773132633672,-320.46936844,0.00018565,2]
[408088861,1773132633681,-1000.0,0.00018577,2]
[408088862,1773132633691,-500.0,0.00018607,2]
[408088863,1773132633700,-200.0,0.00018637,2]
[408088864,1773132633710,-939.0,0.00018683,2]
[408088865,1773132633720,-419.0,0.00018683,2]
[408088866,1773132633729,-500.0,0.00018685,7]
[408088867,1773132633739,-500.0,0.00018685,7]
[408088868,1773132633751,-500.0,0.00018685,7]
[408088869,1773132633761,-9728.39527393,0.00018687,2]
[408088870,1773132633771,-5000.0,0.00018687,2]
[408088871,1773132633780,-5000.0,0.00018687,2]
[408088872,1773132633789,-4029.29266615,0.00018688,2]
[408088873,1773132633799,-506.45,0.00018702,2]
[408088874,1773132633809,-1000.0,0.00018724,2]
[408088875,1773132633819,-500.0,0.00018724,2]
[408088876,1773132633828,-200.0,0.00018724,2]
[408088877,1773132633838,-174.61919141,0.00018724,2]
[408088878,1773132633848,-262.90206542,0.00018724,2]
[408088879,1773132633858,-288.52,0.00018768,2]
[408088880,1773132633868,-172.91703981,0.00018794,2]
[408088881,1773132633881,-166.66,0.00018823,2]
[408088882,1773132633892,-489.87,0.00018843,2]
[408088883,1773132633902,-484.79,0.00018843,2]
[408088884,1773132633911,-489.87,0.00018843,2]
[408088885,1773132633922,-4029.29266615,0.00018857,2]
[408088886,1773132633932,-500.0,0.00018881,2]
[408088887,1773132633943,-500.0,0.00018959,7]
[408088888,1773132633954,-500.0,0.00018959,7]
[408088889,1773132633964,-200.0,0.00018983,2]
[408088890,1773132633975,-221.0,0.00018995,2]
[408088891,1773132633985,-407.22899406,0.00019,2]
[408088892,1773132633995,-500.0,0.00019,2]
[408088893,1773132634005,-500.0,0.00019,2]
[408088894,1773132634014,-4029.29266615,0.00019026,2]
[408088895,1773132634024,-484.79,0.00019034,2]
[408088896,1773132634035,-889.73,0.00019106,2]
[408088897,1773132634044,-500.0,0.00019155,2]
[408088898,1773132634054,-300.0,0.00019178,2]
[408088899,1773132634064,-300.0,0.00019178,2]
[408088900,1773132634073,-210.475,0.00019178,2]
[408088901,1773132634083,-626.93,0.00019178,2]
[408088902,1773132634096,-250.0,0.00019178,2]
[408088903,1773132634105,-787.0,0.00019178,2]
[408088904,1773132634115,-255.0,0.00019185,2]
[408088905,1773132634125,-4029.29266615,0.00019196,2]
[408088906,1773132634134,-166.66,0.00019196,2]
[408088907,1773132634149,-2000.0,0.000192,2]
[408088908,1773132634158,-484.79,0.00019224,2]
[408088909,1773132634168,-500.0,0.00019233,7]
[408088910,1773132634178,-500.0,0.00019233,7]
[408088911,1773132634187,-1123.97,0.00019266,2]
[408088912,1773132634197,-1000.0,0.00019272,2]
[408088913,1773132634207,-200.0,0.000193,7]
[408088914,1773132634216,-500.0,0.00019313,2]
[408088915,1773132634226,-4029.29266615,0.00019365,2]
[408088916,1773132634236,-2500.0,0.00019371,2]
[408088917,1773132634246,-658.0,0.00019373,2]
[408088918,1773132634255,-150.0,0.00019373,2]
[408088919,1773132634265,-150.0,0.00019373,2]
[408088920,1773132634274,-216.0,0.00019373,2]
[408088921,1773132634284,-174.0,0.00019383,2]
[408088922,1773132634294,-500.0,0.000194,7]
[408088923,1773132634303,-500.0,0.00019421,7]
[408088924,1773132634313,-500.0,0.00019421,7]
[408088925,1773132634323,-638.77088667,0.00019424,2]
[408088926,1773132634332,-160.16670263,0.00019425,2]
[408088927,1773132634342,-500.0,0.00019429,2]
[408088928,1773132634352,-500.0,0.0001947,2]
[408088929,1773132634361,-71188.0057854,0.00019471,2]
[408088930,1773132634375,-16586.81763869,0.00019471,2]
[408088931,1773132634387,-8499.31484076,0.00019471,2]
[408088932,1773132634402,-758.3439023,0.00019471,2]
[408088935,1773132638132,-1050.0,0.00019471,2]
[408088936,1773132638305,-916.51199559,0.00019471,2]
[408088937,1773132638317,-1000.0,0.00019471,2]
[408088938,1773132638333,-968.12794408,0.00019471,2]
[408088939,1773132638344,-8849.92838943,0.00019471,2]
[408088940,1773132638356,-694.10502243,0.00019471,2]
[408088941,1773132638367,-1555.7000002,0.00019471,2]
[408088954,1773132640400,-173.74102991,0.00018518,2]
[408088955,1773132640410,-423.29189109,0.00019471,2]
[408088956,1773132640422,-2094.6244665,0.00019471,2]
[408088957,1773132640615,-66780.79419404,0.00019471,2]
[408088958,1773132640669,-19999.75500897,0.00019471,2]
[408088959,1773132640680,-35505.8733631,0.00019471,2]
[408088960,1773132640691,-20693.9092295,0.00019471,2]
[408088961,1773132640931,-2658.333,0.00019471,2]
[408088982,1773132646063,-264.49836615,0.00019424,2]
[408088983,1773132646074,-161.34889163,0.00019424,2]
[408088984,1773132646085,-3083.23084723,0.00019471,2]
[408088985,1773132646096,-1980.96955014,0.00019471,2]
[408088986,1773132646115,-725.82622165,0.00019471,2]
[408088987,1773132646172,-9664.25934027,0.00019471,2]
[408088988,1773132646227,-706.01949435,0.00019471,2]
[408088989,1773132646239,-144408.68767428,0.00019471,2]
[408088990,1773132646248,-212.300695,0.00019471,2]
[408088991,1773132646259,-212.300695,0.00019471,2]
[408088992,1773132646268,-500.0,0.00019473,2]
[408088993,1773132646277,-500.0,0.00019473,2]
[408088994,1773132646286,-426.7448821,0.00019473,2]
[408088995,1773132646295,-388.60866893,0.00019473,2]
[408088996,1773132646304,-289.99069694,0.00019473,2]
[408088997,1773132646314,-500.0,0.00019473,2]
[408088998,1773132646323,-500.0,0.00019473,2]
[408088999,1773132646332,-500.0,0.00019473,2]
[408089000,1773132646342,-700.0,0.000195,7]
[408089001,1773132646351,-5422.1604929,0.00019504,2]
[408089002,1773132646361,-3650.5930108,0.00019504,2]
[408089003,1773132646370,-500.0,0.00019507,7]
[408089004,1773132646378,-500.0,0.00019507,7]
[408089005,1773132646387,-500.0,0.00019527,2]
[408089006,1773132646397,-500.0,0.00019527,2]
[408089007,1773132646407,-500.0,0.00019527,2]
[408089008,1773132646416,-500.0,0.00019527,2]
[408089009,1773132646425,-200.0,0.00019531,2]
[408089010,1773132646435,-4029.29266615,0.00019534,2]
[408089011,1773132646445,-803.518,0.00019565,2]
[408089012,1773132646454,-174.0,0.00019566,2]
[408089013,1773132646463,-166.66,0.00019569,2]
[408089014,1773132646472,-500.0,0.0001957,2]
[408089015,1773132646481,-500.0,0.0001957,2]
[408089016,1773132646490,-500.0,0.0001957,2]
[408089017,1773132646499,-1278.849,0.00019574,2]
[408089019,1773132646509,-414.0,0.00019574,2]
[408089020,1773132646518,-3750.0,0.00019574,2]
[408089022,1773132646527,-5995.0,0.00019574,2]
[408089023,1773132646536,-877.24,0.00019577,2]
[408089024,1773132646545,-41872.08681,0.00019588,2]
[408089025,1773132646554,-212.04010837,0.00019589,2]
[408089026,1773132646563,-197.67011682,0.00019589,2]
[408089027,1773132646572,-500.0,0.00019589,2]
[408089028,1773132646581,-500.0,0.00019589,2]
[408089029,1773132646590,-414.51624563,0.00019589,2]
[408089030,1773132646599,-619.54953742,0.00019589,2]
[408089031,1773132646608,-1510.547347,0.000196,2]
[408089032,1773132646617,-1000.0,0.000196,7]
[408089033,1773132646627,-484.83,0.00019605,2]
[408089034,1773132646636,-160.18,0.00019606,2]
[408089035,1773132646645,-289.0,0.00019616,2]
[408089036,1773132646654,-615.36350793,0.0001963,2]
[408089037,1773132646663,-1459.65705149,0.0001963,2]
[408089038,1773132646672,-203.26,0.00019667,2]
[408089039,1773132646681,-500.0,0.0001967,2]
[408089040,1773132646690,-500.0,0.0001967,2]
[408089041,1773132646698,-500.0,0.0001967,2]
[408089042,1773132646708,-1300.0,0.000197,7]
[408089043,1773132646717,-304.0,0.000197,2]
[408089044,1773132646726,-994.0,0.000197,2]
[408089045,1773132646735,-500.0,0.00019703,2]
[408089046,1773132646743,-4029.29266615,0.00019703,2]
[408089047,1773132646753,-500.0,0.00019726,2]
[408089048,1773132646762,-787.0,0.00019726,2]
[408089049,1773132646771,-500.0,0.00019738,2]
[408089050,1773132646780,-615.85034056,0.00019738,2]
[408089051,1773132646789,-446.34468194,0.00019738,2]
[408089052,1773132646798,-300.0,0.00019759,2]
[408089053,1773132646808,-300.0,0.0001976,2]
[408089054,1773132646817,-8462.0091134,0.0001976,2]
[408089056,1773132646826,-34616.86741131,0.0001976,2]
[408089058,1773132646837,-1183.72033041,0.0001976,2]
[408089059,1773132725931,-500.0,0.00018218,7]
[408089060,1773132725960,-500.0,0.00018218,7]
[408089061,1773132725989,-198.01,0.0001872,2]
[408089062,1773132728841,-2396.02,0.0001872,2]
[408089063,1773132744471,545.98397172,9.501e-05,2]
[408089064,1773133042174,799.32727009,9.501e-05,2]
[408089068,1773133304469,3393.9260322,0.00013,15]
[408089069,1773133343718,1969.29537996,0.0001,2]
[408089070,1773133346927,500.0,9.501e-05,2]
[408089071,1773133347202,702.93117237,9.501e-05,2]
[408089072,1773133347405,500.0,9.501e-05,2]
[408089073,1773133348114,500.0,9.501e-05,2]
[408089074,1773133352383,500.0,9.501e-05,2]
[408089075,1773133352639,384.96784867,9.501e-05,2]
[408089076,1773133352659,117.6548641,9.501e-05,2]
[408089077,1773133353795,781.04170558,9.501e-05,2]
[408089078,1773133356678,218.51,0.0002,120]
[408089085,1773133642184,500.0,9.501e-05,2]
[408089086,1773133642256,500.0,9.501e-05,2]
[408089087,1773133644213,500.0,9.501e-05,2]
[408089088,1773133645642,820.88890927,9.501e-05,2]
[408089089,1773133647345,832.00906792,9.501e-05,2]
[408089090,1773133649662,850.0,9.501e-05,2]
[408089091,1773133650920,500.0,9.501e-05,2]
[408089092,1773133651192,150.0,0.00019592,120]
[408089093,1773133653182,500.0,9.501e-05,2]
[408089094,1773133654027,500.0,9.501e-05,2]
[408089095,1773133654667,604.37882443,9.501e-05,2]
[408089096,1773133657067,500.0,9.501e-05,2]
[408089097,1773133657132,500.0,9.501e-05,2]
[408089098,1773133657157,500.0,9.501e-05,2]
[408089132,1773133832238,-150.0,0.00014999,2]
[408089134,1773133832248,-300.0,0.00014999,2]
[408089135,1773133832259,-260.0,0.00014999,2]
[408089137,1773133832270,-575.5876787,0.00014999,2]
[408089138,1773133832286,-309.88642084,0.00014999,2]
[408089139,1773133832313,-54.52590046,0.00014999,2]
[408089140,1773133832322,-250.0,0.00014999,2]
[408089141,1773133832331,-162.01,0.00015,2]
[408089142,1773133832342,-118.26365059,0.00015,30]
[408089143,1773133832355,-381.73634941,0.00015,30]
[408089144,1773133832365,-500.0,0.00015,30]
[408089145,1773133832374,-500.0,0.00015,30]
[408089146,1773133832383,-500.0,0.00015,30]
[408089147,1773133832393,-500.0,0.00015,30]
[408089148,1773133832403,-500.0,0.00015,30]
[408089149,1773133832412,-500.0,0.00015,30]
[408089150,1773133832423,-500.0,0.00015,30]
[408089151,1773133832435,-500.0,0.00015,30]
[408089152,1773133832443,-500.0,0.00015,30]
[408089153,1773133832453,-500.0,0.00015,30]
[408089154,1773133832464,-500.0,0.00015,30]
[408089155,1773133832474,-500.0,0.00015,30]
[408089156,1773133832485,-500.0,0.00015,30]
[408089157,1773133832494,-500.0,0.00015,30]
[408089158,1773133832503,-500.0,0.00015,30]
[408089160,1773133832512,-500.0,0.00015,30]
[408089162,1773133832521,-500.0,0.00015,30]
[408089164,1773133832532,-500.0,0.00015,30]
[408089166,1773133832541,-500.0,0.00015,30]
[408089168,1773133832550,-500.0,0.00015,30]
[408089170,1773133832560,-500.0,0.00015,30]
[408089172,1773133832569,-500.0,0.00015,30]
[408089174,1773133832579,-500.0,0.00015,30]
[408089176,1773133832588,-236.31323538,0.0001519,3]
[408089178,1773133832599,-600.09467,0.0001519,3]
[408089180,1773133832610,-3175.01039927,0.0001519,3]
[408089182,1773133832619,-26.34811707,0.000153,2]
[408089185,1773133832652,-387.105,0.000153,2]
[408089186,1773133832663,-1104.18688293,0.000153,2]
[408089187,1773133832673,-510.95848358,0.000154,2]
[408089188,1773133832682,-341.3931,0.00015595,7]
[408089189,1773133832692,-414.96153349,0.00015674,7]
[408089190,1773133832703,-340.95165351,0.00015674,7]
[408089191,1773133832712,-2251.82004778,0.00015807,2]
[408089192,1773133832721,-1000.0,0.00015999,2]
[408089193,1773133832730,-21925.96350167,0.00016,2]
[408089194,1773133832739,-255.0,0.00016124,2]
[408089195,1773133832748,-5543.1136297,0.000162,5]
[408089196,1773133832757,-217.49,0.00016283,2]
[408089197,1773133832766,-420.0,0.00016416,2]
[408089198,1773133832776,-195.0,0.00016499,2]
[408089199,1773133832785,-195.0,0.00016499,2]
[408089200,1773133832794,-195.0,0.00016499,2]
[408089201,1773133832803,-195.0,0.00016499,2]
[408089202,1773133832813,-195.0,0.00016499,2]
[408089203,1773133832822,-2832.84558435,0.00016499,2]
[408089204,1773133832831,-528.75827552,0.00016499,2]
[408089205,1773133832840,-2500.0,0.00016499,2]
[408089206,1773133832850,-2500.0,0.00016499,2]
[408089207,1773133832859,-2500.0,0.00016499,2]
[408089208,1773133832868,-2500.0,0.00016499,2]
[408089209,1773133832877,-2500.0,0.00016499,2]
[408089210,1773133832887,-300.0,0.00016499,2]
[408089211,1773133832896,-250.0,0.00016499,2]
[408089212,1773133832905,-250.0,0.00016499,2]
[408089213,1773133832914,-500.0,0.00016499,2]
[408089214,1773133832924,-1680.0,0.00016499,2]
[408089215,1773133832933,-166.55,0.00016712,2]
[408089216,1773133832942,-2046.42,0.00016825,2]
[408089217,1773133832951,-504.0,0.00017,2]
[408089218,1773133832961,-3173.57426313,0.00017109,2]
[408089219,1773133832970,-50440.63316512,0.0001711,2]
[408089220,1773133832979,-500.0,0.00017131,2]
[408089221,1773133832989,-3339.32,0.00017131,2]
[408089222,1773133832998,-966.3884,0.00017236,2]
[408089223,1773133833007,-2046.42,0.00017246,2]
[408089224,1773133833016,-152.0,0.0001733,3]
[408089225,1773133833026,-6796.41223008,0.00017628,2]
[408089226,1773133833035,-2046.42,0.00017666,2]
[408089227,1773133833044,-485.33,0.00017718,3]
[408089228,1773133833054,-500.0,0.00017727,2]
[408089229,1773133833063,-500.0,0.00017727,2]
[408089230,1773133833074,-999.99,0.00017728,2]
[408089231,1773133833082,-150.99,0.00017728,2]
[408089232,1773133833092,-3041.69,0.00017728,2]
[408089233,1773133833102,-9999.99,0.00017728,2]
[408089234,1773133833112,-499.99,0.00017728,2]
[408089235,1773133833121,-150.99,0.00017728,2]
[408089236,1773133833130,-350.42,0.00017728,2]
[408089237,1773133833140,-2054.16,0.00017728,2]
[408089238,1773133833150,-313.56,0.00017728,2]
[408089239,1773133833159,-6400.57,0.00017728,2]
[408089240,1773133833168,-9999.99,0.00017728,2]
[408089241,1773133833178,-2955.77,0.00017728,2]
[408089242,1773133833187,-9999.99,0.00017728,2]
[408089243,1773133833196,-6796.41223008,0.00017877,2]
[408089244,1773133833206,-587.0,0.00017966,2]
[408089245,1773133833215,-2500.0,0.00017976,2]
[408089246,1773133833224,-158.58490829,0.00018051,2]
[408089247,1773133833233,-200.0,0.00018066,2]
[408089248,1773133833242,-1500.0,0.00018066,2]
[408089249,1773133833252,-24944.62,0.00018076,2]
[408089250,1773133833261,-1600.0,0.00018076,2]
[408089251,1773133833271,-5018.32,0.00018076,2]
[408089252,1773133833285,-2046.42,0.00018087,2]
[408089253,1773133833295,-6796.41223008,0.00018127,2]
[408089254,1773133833304,-2351.0,0.00018149,2]
[408089255,1773133833315,-500.0,0.00018218,7]
[408089256,1773133833325,-500.0,0.00018218,7]
[408089257,1773133833334,-8040.72436168,0.00018284,3]
[408089258,1773133833344,-5357.10056088,0.00018376,2]
[408089259,1773133833357,-1439.3116692,0.00018376,2]
[408089260,1773133833366,-500.0,0.00018411,7]
[408089261,1773133833375,-654.06,0.00018411,7]
[408089262,1773133833384,-122.37677315,0.00018455,2]
[408089263,1773133833406,-377.62322685,0.00018455,2]
[408089264,1773133833415,-150.0,0.00018455,2]
[408089265,1773133833424,-160.09677315,0.00018469,2]
[408089266,1773133833704,-311.52322685,0.00018469,2]
[408089267,1773133833721,-101.25405384,0.00018508,2]
[408089268,1773133833732,-585.39195199,0.00018508,2]
[408089269,1773133833748,-1359.77399417,0.00018508,2]
[408089270,1773133833757,-601.78350854,0.0001851,2]
[408089271,1773133833767,-2927.61,0.00018575,2]
[408089272,1773133833777,-241.24804838,0.00018587,2]
[408089275,1773133838311,-758.75195162,0.00018587,2]
[408089276,1773133838321,-1213.0,0.00018598,2]
[408089277,1773133838330,-922.0,0.00018598,2]
[408089278,1773133838339,-514.0,0.00018598,2]
[408089279,1773133838348,-13.35401889,0.00018598,2]
[408089280,1773133838365,-1976.09516634,0.00018598,2]
[408089281,1773133838420,-1807.85877248,0.00018598,2]
[408089282,1773133838431,-2224.65504229,0.00018598,2]
[408089283,1773133838441,-451.0,0.00018603,2]
[408089284,1773133838450,-500.0,0.00018604,2]
[408089285,1773133838459,-151.0,0.00018604,2]
[408089286,1773133838468,-151.0,0.00018604,2]
[408089287,1773133838478,-151.0,0.00018604,2]
[408089288,1773133838487,-151.0,0.00018604,2]
[408089289,1773133838495,-151.0,0.00018604,2]
[408089290,1773133838505,-151.0,0.00018604,2]
[408089291,1773133838514,-151.0,0.00018604,2]
[408089292,1773133838522,-151.0,0.00018604,2]
[408089293,1773133838531,-151.0,0.00018604,2]
[408089294,1773133838540,-236.39195199,0.00018604,2]
[408089295,1773133838548,-500.0,0.00018604,2]
[408089296,1773133838557,-200.0,0.00018604,2]
[408089297,1773133838566,-504.0,0.00018615,3]
[408089298,1773133838575,-6796.41223008,0.00018625,2]
[408089299,1773133838584,-500.0,0.00018685,7]
[408089300,1773133838593,-207.97,0.0001872,2]
[408089301,1773133838602,-150.0,0.00018732,2]
[408089302,1773133838611,-489.0,0.00018748,2]
[408089303,1773133838620,-5.47877564,0.00018758,2]
[408089304,1773133838631,-1257.68700571,0.00018758,2]
[408089305,1773133838646,-1386.35636678,0.00018758,2]
[408089306,1773133838661,-307.54466494,0.00018758,2]
[408089321,1773133838975,-5626.49677955,0.00018758,2]
[408089324,1773133838986,-416.43640738,0.00018758,2]